Workbook

Sheet ejemplo
J1: Criterios
A2: Factura | B2: Fecha | C2: Cliente | D2: Ciudad | E2: Vendedor | F2: Condiciones | G2: Importe | J2: Ciudad | K2: Guadalajara
A3: 1 | B3: 2014-02-13 | C3: Cliente59 | D3: Guadalajara | E3: pedro | F3: credito | G3: 126296 | J3: Fechas | K3: >=01/01/2014 | L3: <=31/07/2014
A4: 2 | B4: 2014-01-02 | C4: Cliente67 | D4: Puebla | E4: ramon | F4: credito | G4: 126437 | J4: Condiciones | K4: contado
A5: 3 | B5: 2014-01-02 | C5: Cliente90 | D5: Puebla | E5: pedro | F5: credito | G5: 19077 | L5: 0.05
A6: 4 | B6: 2014-01-02 | C6: Cliente6 | D6: Guadalajara | E6: angelica | F6: credito | G6: 105897 | J6: Vendedor | K6: Importe | L6: Comision
A7: 5 | B7: 2014-01-03 | C7: Cliente50 | D7: Puebla | E7: manuel | F7: credito | G7: 104856 | J7: pedro | K7: =SUMIFS($G$3:$G$1088,$D$3:$D$1088,$K$2,$E$3:$E$1088,$J7,$B$3:$B$1088,$K$3,$B$3:$B$1088,$L$3,$F$3:$F$1088,$K$4) -> 428117 | L7: =K7*$L$5 -> 21405.85
A8: 6 | B8: 2014-01-03 | C8: Cliente79 | D8: Monterrey | E8: manuel | F8: credito | G8: 161088 | J8: maria | K8: =SUMIFS($G$3:$G$1088,$D$3:$D$1088,$K$2,$E$3:$E$1088,$J8,$B$3:$B$1088,$K$3,$B$3:$B$1088,$L$3,$F$3:$F$1088,$K$4) -> 762610 | L8: =K8*$L$5 -> 38130.5
A9: 7 | B9: 2014-01-03 | C9: Cliente26 | D9: Puebla | E9: ramon | F9: credito | G9: 101712 | J9: juan | K9: =SUMIFS($G$3:$G$1088,$D$3:$D$1088,$K$2,$E$3:$E$1088,$J9,$B$3:$B$1088,$K$3,$B$3:$B$1088,$L$3,$F$3:$F$1088,$K$4) -> 830455 | L9: =K9*$L$5 -> 41522.75
A10: 8 | B10: 2014-01-03 | C10: Cliente89 | D10: Culiacan | E10: angelica | F10: contado | G10: 13587
A11: 9 | B11: 2014-01-04 | C11: Cliente10 | D11: Puebla | E11: pedro | F11: credito | G11: 104291 | J11: http://formulasexcel.com
A12: 10 | B12: 2014-01-04 | C12: Cliente13 | D12: Guadalajara | E12: martha | F12: credito | G12: 165090
A13: 11 | B13: 2014-01-04 | C13: Cliente65 | D13: Culiacan | E13: ramon | F13: contado | G13: 1056
A14: 12 | B14: 2014-01-04 | C14: Cliente28 | D14: Tijuana | E14: roberto | F14: credito | G14: 176514
A15: 13 | B15: 2014-01-04 | C15: Cliente25 | D15: Tijuana | E15: arturo | F15: contado | G15: 129340
A16: 14 | B16: 2014-01-04 | C16: Cliente63 | D16: Tijuana | E16: maria | F16: contado | G16: 20350
A17: 15 | B17: 2014-01-05 | C17: Cliente68 | D17: Tijuana | E17: manuel | F17: contado | G17: 161385
A18: 16 | B18: 2014-01-05 | C18: Cliente83 | D18: Hermosillo | E18: jorge | F18: contado | G18: 49735
A19: 17 | B19: 2014-01-05 | C19: Cliente72 | D19: Monterrey | E19: jorge | F19: credito | G19: 14560
A20: 18 | B20: 2014-01-05 | C20: Cliente95 | D20: Hermosillo | E20: angelica | F20: credito | G20: 102879
A21: 19 | B21: 2014-01-05 | C21: Cliente100 | D21: Hermosillo | E21: angelica | F21: contado | G21: 159556
A22: 20 | B22: 2014-01-05 | C22: Cliente16 | D22: Tapachula | E22: ramon | F22: credito | G22: 115562
A23: 21 | B23: 2014-01-05 | C23: Cliente18 | D23: Puebla | E23: pedro | F23: credito | G23: 55442
A24: 22 | B24: 2014-01-06 | C24: Cliente8 | D24: Monterrey | E24: monica | F24: contado | G24: 48305
A25: 23 | B25: 2014-01-06 | C25: Cliente8 | D25: Puebla | E25: jorge | F25: contado | G25: 133148
A26: 24 | B26: 2014-01-06 | C26: Cliente18 | D26: Hermosillo | E26: arturo | F26: credito | G26: 140442
A27: 25 | B27: 2014-01-06 | C27: Cliente50 | D27: Monterrey | E27: angelica | F27: credito | G27: 3574
A28: 26 | B28: 2014-01-06 | C28: Cliente45 | D28: Puebla | E28: arturo | F28: contado | G28: 17997
A29: 27 | B29: 2014-01-07 | C29: Cliente55 | D29: Guadalajara | E29: martha | F29: contado | G29: 4895
A30: 28 | B30: 2014-01-07 | C30: Cliente22 | D30: Culiacan | E30: maria | F30: contado | G30: 25042
A31: 29 | B31: 2014-01-07 | C31: Cliente78 | D31: Culiacan | E31: roberto | F31: credito | G31: 98757
A32: 30 | B32: 2014-01-07 | C32: Cliente57 | D32: Culiacan | E32: roberto | F32: contado | G32: 65391
A33: 31 | B33: 2014-01-07 | C33: Cliente40 | D33: Puebla | E33: monica | F33: credito | G33: 59070
A34: 32 | B34: 2014-01-07 | C34: Cliente2 | D34: Tapachula | E34: roberto | F34: credito | G34: 160061
A35: 33 | B35: 2014-01-07 | C35: Cliente92 | D35: Guadalajara | E35: angelica | F35: contado | G35: 98069
A36: 34 | B36: 2014-01-08 | C36: Cliente95 | D36: Tijuana | E36: martha | F36: contado | G36: 3961
A37: 35 | B37: 2014-01-08 | C37: Cliente20 | D37: Monterrey | E37: ramon | F37: contado | G37: 20565
A38: 36 | B38: 2014-01-08 | C38: Cliente19 | D38: Puebla | E38: angelica | F38: contado | G38: 140353
A39: 37 | B39: 2014-01-08 | C39: Cliente11 | D39: Monterrey | E39: martha | F39: contado | G39: 5870
A40: 38 | B40: 2014-01-08 | C40: Cliente78 | D40: Tapachula | E40: ramon | F40: contado | G40: 48578
A41: 39 | B41: 2014-01-08 | C41: Cliente64 | D41: Tapachula | E41: ramon | F41: contado | G41: 85940
A42: 40 | B42: 2014-01-09 | C42: Cliente73 | D42: Guadalajara | E42: jorge | F42: credito | G42: 163105
A43: 41 | B43: 2014-01-09 | C43: Cliente69 | D43: Hermosillo | E43: monica | F43: contado | G43: 140604
A44: 42 | B44: 2014-01-09 | C44: Cliente69 | D44: Tijuana | E44: arturo | F44: contado | G44: 152440
A45: 43 | B45: 2014-01-10 | C45: Cliente39 | D45: Hermosillo | E45: angelica | F45: credito | G45: 154727
A46: 44 | B46: 2014-01-10 | C46: Cliente87 | D46: Guadalajara | E46: arturo | F46: contado | G46: 188108
A47: 45 | B47: 2014-01-10 | C47: Cliente73 | D47: Guadalajara | E47: roberto | F47: contado | G47: 97421
A48: 46 | B48: 2014-01-10 | C48: Cliente57 | D48: Guadalajara | E48: roberto | F48: credito | G48: 74439
A49: 47 | B49: 2014-01-10 | C49: Cliente53 | D49: Tapachula | E49: manuel | F49: contado | G49: 164428
A50: 48 | B50: 2014-01-11 | C50: Cliente17 | D50: Tijuana | E50: arturo | F50: credito | G50: 79659
A51: 49 | B51: 2014-01-11 | C51: Cliente50 | D51: Guadalajara | E51: jorge | F51: contado | G51: 72049
A52: 50 | B52: 2014-01-12 | C52: Cliente71 | D52: Tijuana | E52: pedro | F52: contado | G52: 188672
A53: 51 | B53: 2014-01-12 | C53: Cliente92 | D53: Monterrey | E53: juan | F53: credito | G53: 132371
A54: 52 | B54: 2014-01-12 | C54: Cliente19 | D54: Hermosillo | E54: juan | F54: credito | G54: 141717
A55: 53 | B55: 2014-01-12 | C55: Cliente43 | D55: Hermosillo | E55: manuel | F55: credito | G55: 59909
A56: 54 | B56: 2014-01-13 | C56: Cliente12 | D56: Monterrey | E56: jorge | F56: contado | G56: 32591
A57: 55 | B57: 2014-01-13 | C57: Cliente59 | D57: Monterrey | E57: manuel | F57: contado | G57: 49370
A58: 56 | B58: 2014-01-13 | C58: Cliente44 | D58: Puebla | E58: arturo | F58: credito | G58: 41536
A59: 57 | B59: 2014-01-13 | C59: Cliente26 | D59: Guadalajara | E59: pedro | F59: contado | G59: 108695
A60: 58 | B60: 2014-01-13 | C60: Cliente26 | D60: Culiacan | E60: monica | F60: contado | G60: 136245
A61: 59 | B61: 2014-01-14 | C61: Cliente4 | D61: Tijuana | E61: ramon | F61: contado | G61: 195480
A62: 60 | B62: 2014-01-14 | C62: Cliente93 | D62: Guadalajara | E62: ramon | F62: credito | G62: 20911
A63: 61 | B63: 2014-01-14 | C63: Cliente88 | D63: Tijuana | E63: maria | F63: credito | G63: 155148
A64: 62 | B64: 2014-01-14 | C64: Cliente29 | D64: Tapachula | E64: manuel | F64: contado | G64: 151407
A65: 63 | B65: 2014-01-14 | C65: Cliente64 | D65: Hermosillo | E65: roberto | F65: contado | G65: 90981
A66: 64 | B66: 2014-01-14 | C66: Cliente95 | D66: Tapachula | E66: monica | F66: credito | G66: 111528
A67: 65 | B67: 2014-01-15 | C67: Cliente56 | D67: Tijuana | E67: jorge | F67: contado | G67: 194561
A68: 66 | B68: 2014-01-15 | C68: Cliente59 | D68: Monterrey | E68: arturo | F68: credito | G68: 32552
A69: 67 | B69: 2014-01-15 | C69: Cliente27 | D69: Puebla | E69: arturo | F69: credito | G69: 28283
A70: 68 | B70: 2014-01-15 | C70: Cliente9 | D70: Tijuana | E70: arturo | F70: credito | G70: 22950
A71: 69 | B71: 2014-01-15 | C71: Cliente13 | D71: Culiacan | E71: roberto | F71: contado | G71: 4626
A72: 70 | B72: 2014-01-16 | C72: Cliente55 | D72: Puebla | E72: arturo | F72: credito | G72: 162013
A73: 71 | B73: 2014-01-16 | C73: Cliente13 | D73: Culiacan | E73: arturo | F73: contado | G73: 34381
A74: 72 | B74: 2014-01-16 | C74: Cliente56 | D74: Culiacan | E74: juan | F74: credito | G74: 53968
A75: 73 | B75: 2014-01-16 | C75: Cliente80 | D75: Tapachula | E75: juan | F75: contado | G75: 94859
A76: 74 | B76: 2014-01-16 | C76: Cliente37 | D76: Monterrey | E76: angelica | F76: contado | G76: 56432
A77: 75 | B77: 2014-01-16 | C77: Cliente29 | D77: Tapachula | E77: juan | F77: contado | G77: 179212
A78: 76 | B78: 2014-01-16 | C78: Cliente22 | D78: Hermosillo | E78: monica | F78: contado | G78: 18455
A79: 77 | B79: 2014-01-16 | C79: Cliente40 | D79: Tijuana | E79: ramon | F79: contado | G79: 108294
A80: 78 | B80: 2014-01-17 | C80: Cliente54 | D80: Hermosillo | E80: ramon | F80: credito | G80: 179950
A81: 79 | B81: 2014-01-17 | C81: Cliente74 | D81: Monterrey | E81: pedro | F81: contado | G81: 173518
A82: 80 | B82: 2014-01-17 | C82: Cliente88 | D82: Culiacan | E82: maria | F82: contado | G82: 124836
A83: 81 | B83: 2014-01-17 | C83: Cliente69 | D83: Guadalajara | E83: martha | F83: contado | G83: 127321
A84: 82 | B84: 2014-01-17 | C84: Cliente1 | D84: Culiacan | E84: roberto | F84: credito | G84: 175328
A85: 83 | B85: 2014-01-17 | C85: Cliente43 | D85: Tapachula | E85: angelica | F85: credito | G85: 182451
A86: 84 | B86: 2014-01-17 | C86: Cliente26 | D86: Hermosillo | E86: monica | F86: credito | G86: 197208
A87: 85 | B87: 2014-01-17 | C87: Cliente15 | D87: Guadalajara | E87: martha | F87: contado | G87: 99651
A88: 86 | B88: 2014-01-18 | C88: Cliente80 | D88: Culiacan | E88: arturo | F88: credito | G88: 173054
A89: 87 | B89: 2014-01-18 | C89: Cliente37 | D89: Monterrey | E89: monica | F89: credito | G89: 113528
A90: 88 | B90: 2014-01-18 | C90: Cliente14 | D90: Monterrey | E90: juan | F90: credito | G90: 20688
A91: 89 | B91: 2014-01-18 | C91: Cliente62 | D91: Monterrey | E91: roberto | F91: credito | G91: 67744
A92: 90 | B92: 2014-01-18 | C92: Cliente1 | D92: Tapachula | E92: manuel | F92: contado | G92: 32906
A93: 91 | B93: 2014-01-18 | C93: Cliente37 | D93: Monterrey | E93: jorge | F93: credito | G93: 119475
A94: 92 | B94: 2014-01-18 | C94: Cliente98 | D94: Monterrey | E94: jorge | F94: contado | G94: 15274
A95: 93 | B95: 2014-01-18 | C95: Cliente18 | D95: Hermosillo | E95: manuel | F95: credito | G95: 96744
A96: 94 | B96: 2014-01-19 | C96: Cliente12 | D96: Tijuana | E96: roberto | F96: credito | G96: 196282
A97: 95 | B97: 2014-01-19 | C97: Cliente96 | D97: Monterrey | E97: roberto | F97: contado | G97: 140448
A98: 96 | B98: 2014-01-19 | C98: Cliente68 | D98: Guadalajara | E98: jorge | F98: contado | G98: 180346
A99: 97 | B99: 2014-01-19 | C99: Cliente42 | D99: Hermosillo | E99: manuel | F99: contado | G99: 105186
A100: 98 | B100: 2014-01-20 | C100: Cliente94 | D100: Puebla | E100: jorge | F100: contado | G100: 196571
A101: 99 | B101: 2014-01-20 | C101: Cliente97 | D101: Culiacan | E101: manuel | F101: contado | G101: 77757
A102: 100 | B102: 2014-01-20 | C102: Cliente53 | D102: Tijuana | E102: manuel | F102: credito | G102: 104544
A103: 101 | B103: 2014-01-20 | C103: Cliente97 | D103: Culiacan | E103: roberto | F103: contado | G103: 9494
A104: 102 | B104: 2014-01-21 | C104: Cliente79 | D104: Monterrey | E104: martha | F104: credito | G104: 30821
A105: 103 | B105: 2014-01-21 | C105: Cliente10 | D105: Tapachula | E105: maria | F105: contado | G105: 138668
A106: 104 | B106: 2014-01-21 | C106: Cliente52 | D106: Hermosillo | E106: ramon | F106: credito | G106: 34473
A107: 105 | B107: 2014-01-21 | C107: Cliente31 | D107: Culiacan | E107: ramon | F107: credito | G107: 3728
A108: 106 | B108: 2014-01-21 | C108: Cliente49 | D108: Monterrey | E108: roberto | F108: credito | G108: 99484
A109: 107 | B109: 2014-01-21 | C109: Cliente79 | D109: Hermosillo | E109: juan | F109: credito | G109: 104514
A110: 108 | B110: 2014-01-22 | C110: Cliente7 | D110: Puebla | E110: arturo | F110: credito | G110: 84493
A111: 109 | B111: 2014-01-22 | C111: Cliente78 | D111: Monterrey | E111: roberto | F111: credito | G111: 120530
A112: 110 | B112: 2014-01-22 | C112: Cliente26 | D112: Tijuana | E112: martha | F112: contado | G112: 144891
A113: 111 | B113: 2014-01-22 | C113: Cliente34 | D113: Monterrey | E113: maria | F113: contado | G113: 169411
A114: 112 | B114: 2014-01-22 | C114: Cliente54 | D114: Tapachula | E114: martha | F114: contado | G114: 171020
A115: 113 | B115: 2014-01-23 | C115: Cliente9 | D115: Hermosillo | E115: maria | F115: contado | G115: 156468
A116: 114 | B116: 2014-01-23 | C116: Cliente75 | D116: Puebla | E116: maria | F116: contado | G116: 81552
A117: 115 | B117: 2014-01-23 | C117: Cliente19 | D117: Tijuana | E117: angelica | F117: contado | G117: 108345
A118: 116 | B118: 2014-01-24 | C118: Cliente55 | D118: Guadalajara | E118: monica | F118: credito | G118: 3557
A119: 117 | B119: 2014-01-24 | C119: Cliente75 | D119: Tapachula | E119: pedro | F119: contado | G119: 34298
A120: 118 | B120: 2014-01-24 | C120: Cliente60 | D120: Culiacan | E120: martha | F120: contado | G120: 185192
A121: 119 | B121: 2014-01-24 | C121: Cliente68 | D121: Tapachula | E121: arturo | F121: contado | G121: 69571
A122: 120 | B122: 2014-01-24 | C122: Cliente26 | D122: Puebla | E122: manuel | F122: contado | G122: 24228
A123: 121 | B123: 2014-01-24 | C123: Cliente29 | D123: Tapachula | E123: monica | F123: contado | G123: 112175
A124: 122 | B124: 2014-01-24 | C124: Cliente5 | D124: Puebla | E124: pedro | F124: credito | G124: 117543
A125: 123 | B125: 2014-01-24 | C125: Cliente30 | D125: Hermosillo | E125: arturo | F125: credito | G125: 41240
A126: 124 | B126: 2014-01-25 | C126: Cliente18 | D126: Guadalajara | E126: ramon | F126: credito | G126: 180895
A127: 125 | B127: 2014-01-25 | C127: Cliente84 | D127: Culiacan | E127: ramon | F127: credito | G127: 11990
A128: 126 | B128: 2014-01-25 | C128: Cliente17 | D128: Guadalajara | E128: arturo | F128: contado | G128: 109522
A129: 127 | B129: 2014-01-25 | C129: Cliente21 | D129: Hermosillo | E129: juan | F129: contado | G129: 100112
A130: 128 | B130: 2014-01-25 | C130: Cliente11 | D130: Culiacan | E130: maria | F130: contado | G130: 164238
A131: 129 | B131: 2014-01-25 | C131: Cliente29 | D131: Guadalajara | E131: maria | F131: credito | G131: 176273
A132: 130 | B132: 2014-01-25 | C132: Cliente71 | D132: Tijuana | E132: arturo | F132: credito | G132: 36607
A133: 131 | B133: 2014-01-25 | C133: Cliente67 | D133: Monterrey | E133: martha | F133: contado | G133: 59980
A134: 132 | B134: 2014-01-26 | C134: Cliente28 | D134: Tapachula | E134: ramon | F134: credito | G134: 68261
A135: 133 | B135: 2014-01-26 | C135: Cliente72 | D135: Culiacan | E135: roberto | F135: credito | G135: 136608
A136: 134 | B136: 2014-01-26 | C136: Cliente18 | D136: Hermosillo | E136: maria | F136: contado | G136: 166709
A137: 135 | B137: 2014-01-26 | C137: Cliente28 | D137: Tapachula | E137: maria | F137: contado | G137: 149906
A138: 136 | B138: 2014-01-27 | C138: Cliente18 | D138: Puebla | E138: monica | F138: contado | G138: 139239
A139: 137 | B139: 2014-01-27 | C139: Cliente43 | D139: Hermosillo | E139: roberto | F139: contado | G139: 142358
A140: 138 | B140: 2014-01-27 | C140: Cliente39 | D140: Tijuana | E140: manuel | F140: credito | G140: 76917
A141: 139 | B141: 2014-01-27 | C141: Cliente40 | D141: Monterrey | E141: monica | F141: contado | G141: 42812
A142: 140 | B142: 2014-01-27 | C142: Cliente86 | D142: Puebla | E142: arturo | F142: contado | G142: 46715
A143: 141 | B143: 2014-01-28 | C143: Cliente46 | D143: Hermosillo | E143: manuel | F143: contado | G143: 25030
A144: 142 | B144: 2014-01-29 | C144: Cliente51 | D144: Culiacan | E144: monica | F144: contado | G144: 120136
A145: 143 | B145: 2014-01-29 | C145: Cliente34 | D145: Monterrey | E145: arturo | F145: contado | G145: 146504
A146: 144 | B146: 2014-01-29 | C146: Cliente65 | D146: Tapachula | E146: angelica | F146: credito | G146: 113680
A147: 145 | B147: 2014-01-30 | C147: Cliente21 | D147: Puebla | E147: pedro | F147: credito | G147: 157442
A148: 146 | B148: 2014-01-30 | C148: Cliente63 | D148: Hermosillo | E148: ramon | F148: credito | G148: 174157
A149: 147 | B149: 2014-01-30 | C149: Cliente48 | D149: Tijuana | E149: monica | F149: contado | G149: 60286
A150: 148 | B150: 2014-01-30 | C150: Cliente31 | D150: Monterrey | E150: pedro | F150: credito | G150: 91169
A151: 149 | B151: 2014-01-30 | C151: Cliente92 | D151: Monterrey | E151: manuel | F151: credito | G151: 155553
A152: 150 | B152: 2014-01-31 | C152: Cliente96 | D152: Hermosillo | E152: monica | F152: credito | G152: 144848
A153: 151 | B153: 2014-01-31 | C153: Cliente72 | D153: Hermosillo | E153: jorge | F153: credito | G153: 144729
A154: 152 | B154: 2014-01-31 | C154: Cliente95 | D154: Hermosillo | E154: jorge | F154: contado | G154: 95292
A155: 153 | B155: 2014-01-31 | C155: Cliente70 | D155: Guadalajara | E155: monica | F155: credito | G155: 23592
A156: 154 | B156: 2014-01-31 | C156: Cliente10 | D156: Monterrey | E156: monica | F156: contado | G156: 164473
A157: 155 | B157: 2014-01-31 | C157: Cliente29 | D157: Hermosillo | E157: juan | F157: contado | G157: 65779
A158: 156 | B158: 2014-02-01 | C158: Cliente83 | D158: Tijuana | E158: angelica | F158: credito | G158: 142156
A159: 157 | B159: 2014-02-01 | C159: Cliente8 | D159: Puebla | E159: angelica | F159: contado | G159: 170296
A160: 158 | B160: 2014-02-01 | C160: Cliente28 | D160: Guadalajara | E160: ramon | F160: contado | G160: 138938
A161: 159 | B161: 2014-02-01 | C161: Cliente60 | D161: Culiacan | E161: monica | F161: credito | G161: 198296
A162: 160 | B162: 2014-02-01 | C162: Cliente66 | D162: Guadalajara | E162: maria | F162: contado | G162: 139497
A163: 161 | B163: 2014-02-01 | C163: Cliente43 | D163: Tapachula | E163: jorge | F163: credito | G163: 191453
A164: 162 | B164: 2014-02-01 | C164: Cliente2 | D164: Hermosillo | E164: martha | F164: credito | G164: 73062
A165: 163 | B165: 2014-02-01 | C165: Cliente13 | D165: Hermosillo | E165: jorge | F165: credito | G165: 56998
A166: 164 | B166: 2014-02-02 | C166: Cliente50 | D166: Puebla | E166: pedro | F166: contado | G166: 72043
A167: 165 | B167: 2014-02-02 | C167: Cliente6 | D167: Tapachula | E167: arturo | F167: contado | G167: 26331
A168: 166 | B168: 2014-02-02 | C168: Cliente18 | D168: Monterrey | E168: jorge | F168: contado | G168: 126637
A169: 167 | B169: 2014-02-02 | C169: Cliente61 | D169: Tijuana | E169: manuel | F169: contado | G169: 16240
A170: 168 | B170: 2014-02-03 | C170: Cliente89 | D170: Culiacan | E170: maria | F170: credito | G170: 53138
A171: 169 | B171: 2014-02-03 | C171: Cliente57 | D171: Hermosillo | E171: martha | F171: contado | G171: 184982
A172: 170 | B172: 2014-02-03 | C172: Cliente22 | D172: Guadalajara | E172: jorge | F172: credito | G172: 68584
A173: 171 | B173: 2014-02-03 | C173: Cliente45 | D173: Puebla | E173: maria | F173: contado | G173: 89547
A174: 172 | B174: 2014-02-03 | C174: Cliente63 | D174: Guadalajara | E174: maria | F174: contado | G174: 173353
A175: 173 | B175: 2014-02-03 | C175: Cliente96 | D175: Guadalajara | E175: martha | F175: credito | G175: 131744
A176: 174 | B176: 2014-02-03 | C176: Cliente1 | D176: Guadalajara | E176: roberto | F176: credito | G176: 122895
A177: 175 | B177: 2014-02-03 | C177: Cliente93 | D177: Monterrey | E177: roberto | F177: credito | G177: 74943
A178: 176 | B178: 2014-02-03 | C178: Cliente84 | D178: Hermosillo | E178: pedro | F178: contado | G178: 99060
A179: 177 | B179: 2014-02-03 | C179: Cliente65 | D179: Tijuana | E179: jorge | F179: credito | G179: 124831
A180: 178 | B180: 2014-02-03 | C180: Cliente59 | D180: Puebla | E180: martha | F180: credito | G180: 70840
A181: 179 | B181: 2014-02-03 | C181: Cliente22 | D181: Tapachula | E181: martha | F181: credito | G181: 33728
A182: 180 | B182: 2014-02-04 | C182: Cliente60 | D182: Tijuana | E182: martha | F182: credito | G182: 188348
A183: 181 | B183: 2014-02-04 | C183: Cliente94 | D183: Tapachula | E183: arturo | F183: credito | G183: 131806
A184: 182 | B184: 2014-02-04 | C184: Cliente4 | D184: Guadalajara | E184: arturo | F184: contado | G184: 123255
A185: 183 | B185: 2014-02-04 | C185: Cliente59 | D185: Tijuana | E185: martha | F185: credito | G185: 153909
A186: 184 | B186: 2014-02-04 | C186: Cliente78 | D186: Monterrey | E186: pedro | F186: contado | G186: 130357
A187: 185 | B187: 2014-02-04 | C187: Cliente48 | D187: Monterrey | E187: ramon | F187: credito | G187: 9415
A188: 186 | B188: 2014-02-05 | C188: Cliente45 | D188: Puebla | E188: maria | F188: contado | G188: 15705
A189: 187 | B189: 2014-02-05 | C189: Cliente63 | D189: Culiacan | E189: angelica | F189: credito | G189: 49073
A190: 188 | B190: 2014-02-06 | C190: Cliente96 | D190: Monterrey | E190: martha | F190: credito | G190: 135616
A191: 189 | B191: 2014-02-06 | C191: Cliente32 | D191: Hermosillo | E191: juan | F191: credito | G191: 120810
A192: 190 | B192: 2014-02-06 | C192: Cliente15 | D192: Tapachula | E192: maria | F192: contado | G192: 174804
A193: 191 | B193: 2014-02-06 | C193: Cliente73 | D193: Hermosillo | E193: pedro | F193: credito | G193: 83483
A194: 192 | B194: 2014-02-06 | C194: Cliente13 | D194: Tijuana | E194: pedro | F194: contado | G194: 187838
A195: 193 | B195: 2014-02-07 | C195: Cliente74 | D195: Hermosillo | E195: juan | F195: contado | G195: 172094
A196: 194 | B196: 2014-02-07 | C196: Cliente82 | D196: Culiacan | E196: ramon | F196: contado | G196: 90518
A197: 195 | B197: 2014-02-07 | C197: Cliente15 | D197: Puebla | E197: manuel | F197: contado | G197: 47598
A198: 196 | B198: 2014-02-07 | C198: Cliente45 | D198: Tijuana | E198: arturo | F198: contado | G198: 163668
A199: 197 | B199: 2014-02-08 | C199: Cliente60 | D199: Culiacan | E199: roberto | F199: credito | G199: 166351
A200: 198 | B200: 2014-02-08 | C200: Cliente46 | D200: Monterrey | E200: maria | F200: contado | G200: 1782
... 888 more rows

Sheet Funcion SI
B1: Venta | C1: Comision
B2: 10000 | C2: =IF(B2>=10000,B2*10%,0) -> 1000
B4: http://formulasexcel.com

Sheet Funcion BUSCARV
A1: Nombre | B1: Fecha de ingreso | C1: Edad | D1: Sueldo | F1: Nombre | G1: Fecha de ingreso | H1: Sueldo
A2: Juan | B2: 2004-07-30 | C2: 36 | D2: 13707 | F2: Juan | G2: =VLOOKUP($F2,$A$2:$D$8,2,FALSE) -> 2004-07-30 | H2: =VLOOKUP($F2,$A$2:$D$8,4,FALSE) -> 13707
A3: Maria | B3: 2000-08-22 | C3: 28 | D3: 27465
A4: Pedro | B4: 2012-09-23 | C4: 46 | D4: 28845 | F4: http://formulasexcel.com
A5: Jorge | B5: 2007-07-18 | C5: 34 | D5: 9156
A6: Martha | B6: 2007-07-03 | C6: 57 | D6: 20508
A7: Aracely | B7: 2005-07-24 | C7: 31 | D7: 13394
A8: Manuel | B8: 2008-11-02 | C8: 42 | D8: 19339

Sheet contar.si.conjunto
A1: Nombre | B1: Fecha de Venta | C1: Vendedor | D1: Edad | E1: Importe | G1: Nombre | H1: Conteo
A2: Ramon | B2: 2004-07-30 | C2: Juan | D2: 36 | E2: 13707 | G2: jose | H2: =COUNTIFS(C2:C8,"juan",E2:E8,">=5000") -> 3
A3: Maria | B3: 2000-08-22 | C3: Arturo | D3: 28 | E3: 27465
A4: Pedro | B4: 2012-09-23 | C4: Jose | D4: 46 | E4: 28845 | G4: http://formulasexcel.com
A5: Jorge | B5: 2007-07-18 | C5: Juan | D5: 34 | E5: 9156
A6: Martha | B6: 2007-07-03 | C6: Juan | D6: 57 | E6: 20508
A7: Aracely | B7: 2005-07-24 | C7: jose | D7: 31 | E7: 13394
A8: Manuel | B8: 2008-11-02 | C8: jose | D8: 42 | E8: 19339

Sheet sumar.si.conjunto
A1: Nombre | B1: Fecha de Venta | C1: Vendedor | D1: Edad | E1: Importe | G1: Nombre | H1: Conteo
A2: Ramon | B2: 2004-07-30 | C2: Juan | D2: 36 | E2: 13707 | G2: jose | H2: =SUMIFS(E2:E8,C2:C8,"juan",E2:E8,">=5000") -> 43371
A3: Maria | B3: 2000-08-22 | C3: Arturo | D3: 28 | E3: 27465
A4: Pedro | B4: 2012-09-23 | C4: Jose | D4: 46 | E4: 28845 | G4: http://formulasexcel.com
A5: Jorge | B5: 2007-07-18 | C5: Juan | D5: 34 | E5: 9156
A6: Martha | B6: 2007-07-03 | C6: Juan | D6: 57 | E6: 20508
A7: Aracely | B7: 2005-07-24 | C7: jose | D7: 31 | E7: 13394
A8: Manuel | B8: 2008-11-02 | C8: jose | D8: 42 | E8: 19339

Sheet busqueda 2 condiciones
B1: enero | C1: febrero | D1: marzo | G1: Nombre | H1: Mes | I1: importe
A2: juana | B2: 10 | C2: 100 | D2: 20 | G2: juana | H2: febrero | I2: =VLOOKUP(G2,A2:D5,MATCH(H2,A1:D1,0)) -> 100
A3: maria | B3: 20 | C3: 200 | D3: 50
A4: tere | B4: 30 | C4: 300 | D4: 60 | G4: http://formulasexcel.com
A5: martin | B5: 40 | C5: 20 | D5: 70

Sheet maximo-minimo relacionado
A1: Nombre | B1: Importe | F1: Nombre | G1: Importe
A2: juan perez | B2: 350 | E2: Mejor Vendedor | F2: =INDEX($A$2:$B$6,MATCH(MAX($B$2:$B$6),$B$2:$B$6,0),1) -> matha ruelas | G2: =VLOOKUP(F2,$A$2:$B$6,2,FALSE) -> 500
A3: maria lopez | B3: 300 | E3: Peor Vendedor | F3: =INDEX($A$2:$B$6,MATCH(MIN($B$2:$B$6),$B$2:$B$6,0),1) -> jose garcia | G3: =VLOOKUP(F3,$A$2:$B$6,2,FALSE) -> 100
A4: pedro martinez | B4: 200
A5: matha ruelas | B5: 500
A6: jose garcia | B6: 100
D8: http://formulasexcel.com

Sheet numeros a letras
E2: Empresa
E3: Direccion
E4: Telefono
B6: Nombre | AA6: Folio
B7: Direccion | AA7: 10
B8: RFC | AA8: Fecha
AA9: =TODAY() -> 2014-08-10
B11: Codigo | E11: Cantidad | H11: Medida | K11: Descripcion | W11: P. Unitario | AA11: Importe
B12: 10 | E12: 50 | H12: kg | K12: prueba | W12: 20 | AA12: =E12*W12 -> 1000
AA13: =E13*W13 -> 0
AA14: 0
AA15: 0
AA16: 0
AA17: 0
AA18: 0
AA19: 0
AA20: 0
AA21: 0
AA22: 0
AA23: 0
AA24: 0
AA25: 0
AA26: 0
AA27: 0
AA28: 0
AA29: 0
AA30: 0
AA31: 0
AA32: 0
AA33: 0
AA34: 0
AA35: 0
AA36: 0
AA37: 0
AA38: 0
AA39: 0
AA40: 0
AA41: 0
AA42: 0
C44: =letras(AA46,1) -> UN MIL CIENTO SESENTA PESOS 00/100 M.N. | W44: Sub-Total | AA44: =SUM(AA12:AD42) -> 1000
W45: Iva | AA45: =AA44*0.16 -> 160
W46: Total | AA46: =AA44+AA45 -> 1160
H47: http://formulasexcel.com
